Cogmind - Beta 15 @@@ ROGUE MODE // 2025.07.26 @ 18:56:18 Player: FrigidRock Result: Destroyed by P3-XBQ(R) with Subdweller Laser Performance ------------- Evolutions (0) 0 Regions Visited (2) 400 Robots Destroyed (11) 55 Value Destroyed (164) 164 Prototype IDs (0) 0 Alien Tech Used (0) 0 Bonus (0) 0 TOTAL SCORE: 619 Bonus ------- None Cogmind --------- Core Integrity 0/250 Matter 292/300 Energy 100/100 System Corruption 0% Temperature Cool (6) Movement Core (50) Location -10/Subcaves Parts ------- > --- POWER (1) -------- (None) > --- PROPULSION (2) --- (None) > --- UTILITY (2) ------ (None) > --- WEAPON (2) ------- Light Assault Rifle > --- INVENTORY (5) ---- Light Ion Engine Large Storage Unit Datajack Peak State ------------ > --- POWER ------------ Light Nuclear Core > --- PROPULSION ------- Aluminum Leg Aluminum Leg > --- UTILITY ---------- (None) > --- WEAPON ----------- Small Laser Light Assault Rifle > --- INVENTORY -------- Light Ion Engine Compact Wheel Large Storage Unit Small Laser Datajack [Rating: 7] Favorites ----------- Power Light Ion Engine Engine Light Ion Engine Power Core Light Nuclear Core Propulsion Aluminum Leg Leg Aluminum Leg Wheel Compact Wheel Utility None Weapon Small Laser Energy Gun Small Laser Ballistic Gun Light Assault Rifle Build | -11 -10 -10 ------- Run | Yrd Mat Sub Slots Evolved . | . . . Power . | . . . Propulsion . | . . . Utility . | . . . Weapon . | . . . Parts Attached 14 | 5 7 2 Power 4 | 1 2 1 Engine 3 | 1 1 1 Core 1 | . 1 . Reactor . | . . . Propulsion 6 | 2 4 . Treads . | . . . Leg 4 | 2 2 . Wheel 2 | . 2 . Hover . | . . . Flight . | . . . Utility . | . . . Device . | . . . Storage . | . . . Processor . | . . . Hackware . | . . . Protection . | . . . Artifact . | . . . Weapon 4 | 2 1 1 Energy Gun 2 | 2 . . Energy Cannon . | . . . Ballistic Gun 2 | . 1 1 Ballistic Cannon . | . . . Launcher . | . . . Special Weapon . | . . . Impact Weapon . | . . . Slashing Weapon . | . . . Piercing Weapon . | . . . Special Melee Weapon . | . . . Unidentified Prototypes . | . . . Parts Lost 7 | . 1 6 Power 3 | . 1 2 Propulsion 2 | . . 2 Utility . | . . . Weapon 2 | . . 2 Highest Loss Streak 6 | . 1 6 To Critical Strikes . | . . . Average Backups 2 | . 2 3 Power . | . . 1 Propulsion . | . . . Utility . | . . 1 Weapon . | . . . Tool/Special . | . . . Unused Backups 2 | . . 2 Power . | . . . Propulsion . | . . . Utility 1 | . . 1 Weapon . | . . . Tool/Special 1 | . . 1 Average Slot Usage (%) 66 | . 70 55 Engine 8 | . 11 . Core 3 | . 2 7 Leg 18 | . 25 . Wheel 7 | . 2 20 Energy Gun 20 | . 25 6 Ballistic Gun 7 | . 2 20 Peak Build Rating 7 | 5 7 7 Average Rating 4 | 3 5 4 On Entrance 4 | . 5 7 Naked Turns . | . . . Heaviest Build 7 | 5 7 7 Greatest Support 26 | 20 26 26 Greatest Overweight (x) . | . . . Average Overweight (x) . | . . . Largest Inventory Capacity 5 | 5 5 5 Average Capacity 5 | 5 5 5 Most Carried 5 | . 5 3 Average Carried 2 | . 2 3 Final Capacity 5 | 5 5 5 Final Carried 3 | . 3 3 Class Distribution -------------------- 75% | Mutant 25% | Scavenger-Mutant Dominant Class ---------------- Mutant | -10/Materials Mutant | -10/Subcaves Resources | -11 -10 -10 ----------- Run | Yrd Mat Sub Matter Collected 332 | 120 188 24 Remotely . | . . . Salvage Created 299 | . 249 50 Parts 19 | . 15 4 Haulers Intercepted . | . . . Recyclers Shooed 1 | . 1 . Parts Field Recycled . | . . . Retrieved Matter . | . . . Parts Self-Destructed 3 | . . 3 Prevented . | . . . Kills | -11 -10 -10 ------- Run | Yrd Mat Sub Combat Hostiles Destroyed 8 | . 5 3 Guns 8 | . 5 3 Classes Destroyed 5 | . 5 . Worker 1 | . 1 . Recycler 1 | . 1 . Watcher 1 | . 1 . Swarmer 6 | . 3 3 Grunt 2 | . 2 . Best Kill Streak 3 | . 3 3 Combat Bots Only 3 | . 3 3 Max Kills in Single Turn 1 | . 1 1 Gunslinging . | . . . Exploded . | . . . Melee . | . . . Uniques/NPCs Destroyed . | . . . Combat | -11 -10 -10 -------- Run | Yrd Mat Sub Hostile Shots Fired 88 | . 33 55 Missed 21 | . 4 17 Hits 67 | . 29 38 Projectile 67 | . 29 38 Critical Strikes 3 | . 1 2 Damage Taken 799 | . 354 445 Core 250 | . 65 185 Absorbed by Shields . | . . . Core Remaining (%) 100 | 100 . . Volleys Fired 42 | . 23 19 Largest 2 | . 2 2 Hottest 80 | . 80 60 Shots Fired 81 | . 45 36 Gun 81 | . 45 36 Cannon . | . . . Launcher . | . . . Special . | . . . Kinetic 31 | . 1 30 Thermal 50 | . 44 6 Explosive . | . . . Electromagnetic . | . . . Robot Hit Streak 6 | . 6 6 Robot Miss Streak 4 | . 2 4 Penetration Max . | . . . Secondary Targets 3 | . 1 2 Max Gunslinging Chain 1 | . 1 1 Shots Hit Robots 53 | . 30 23 Core Hits 22 | . 14 8 Critical Kills . | . . . Critical Parts Destroyed . | . . . Critical Strikes . | . . . Melee Attacks . | . . . Impact . | . . . Slashing . | . . . Piercing . | . . . Sneak Attacks . | . . . Combat Hostiles . | . . . Follow-up Attacks . | . . . Damage Inflicted 536 | . 324 212 Guns 536 | . 324 212 Cannons . | . . . Explosions . | . . . Melee . | . . . Ramming . | . . . Kinetic 178 | . . 178 Thermal 358 | . 324 34 Explosive . | . . . Electromagnetic . | . . . Impact . | . . . Slashing . | . . . Piercing . | . . . Highest Corruption . | . . . Average Corruption . | . . . Corruption Purged . | . . . Corruption Blocked . | . . . Overload Shots . | . . . Overflow Damage . | . . . Projectiles . | . . . Explosions . | . . . Melee . | . . . Knockbacks . | . . . Impact . | . . . Kinetic . | . . . Secondary . | . . . Self-Inflicted Damage . | . . . Shots . | . . . Rammed . | . . . Targets Rammed . | . . . Kicked . | . . . Crushed . | . . . Highest Temperature 356 | . 356 . Average Temperature 148 | . 148 . Received Heat Transfer 222 | . 180 42 Effects 3 | . 3 . Shutdowns 1 | . 1 . Energy Bleed 1 | . 1 . Short Circuit 1 | . 1 . Siege Activations . | . . . Martial Activations . | . . . Shielding Activations . | . . . Robots Disrupted . | . . . Combat Hostiles . | . . . Robots Corrupted . | . . . Combat Hostiles . | . . . Parts Fried . | . . . Impact Corruptions . | . . . Robots Melted . | . . . Combat Hostiles . | . . . Parts Melted 1 | . 1 . Heat Transferred 825 | . 750 75 Parts Sabotaged . | . . . Parts Stolen . | . . . Parts Stripped . | . . . Power Chain Reactions . | . . . Alert | -11 -10 -10 ------- Run | Yrd Mat Sub Maximum Alert Level . | . . . Low Security (%) 100 | 100 100 . Level 1 . | . . . Level 2 . | . . . Level 3 . | . . . Level 4 . | . . . Level 5 . | . . . High Security . | . . . Max Security . | . . . Peak Influence 82 | . 82 . Initial . | . . . Average 31 | . 37 . Influence Increases 207 | . 137 70 Destroy 0b10 Robot/C 160 | . 100 60 Destroy 0b10 Robot/NC 15 | . 15 . Destroy Leader 32 | . 22 10 Influence Decreases 197 | . 90 107 Entered New Map 23 | . . 23 Time Decay 104 | . 80 24 Lost Part 70 | . 10 60 Squads Dispatched . | . . . Investigation . | . . . Extermination . | . . . Reinforcement . | . . . Assault . | . . . Garrison . | . . . Intercept . | . . . Searches Triggered . | . . . Construction Impeded . | . . . Haulers Reinforced . | . . . Active Scanning Responses . | . . . Cargo Convoy Interrupts . | . . . Stealth | -11 -10 -10 --------- Run | Yrd Mat Sub Distress Signals . | . . . Communications Jammed . | . . . Distress Signals . | . . . Times Spotted 14 | . 9 5 Peak Tracking Total 4 | . 4 3 Tactical Retreats . | . . . Traps | -11 -10 -10 ------- Run | Yrd Mat Sub Traps Triggered . | . . . Indirectly . | . . . Trap Hack Attempts . | . . . Triggered . | . . . Disarmed . | . . . Reprogrammed . | . . . Reused . | . . . Traps Extracted . | . . . Installed . | . . . Triggered . | . . . Machines | -11 -10 -10 ---------- Run | Yrd Mat Sub Machines Disabled . | . . . Max in Single Turn . | . . . Machines Repaired . | . . . Machines Dismantled . | . . . Machines Sabotaged . | . . . Overloaded Fab Kills . | . . . Hacking | -11 -10 -10 --------- Run | Yrd Mat Sub Machines Accessed . | . . . Terminals . | . . . Fabricators . | . . . Repair Stations . | . . . Recycling Units . | . . . Scanalyzers . | . . . Garrison Access . | . . . Total Hacks . | . . . Successful . | . . . Failed . | . . . Catastrophic . | . . . Database Lockouts . | . . . Manual . | . . . Terminals . | . . . Fabricators . | . . . Repair Stations . | . . . Recycling Units . | . . . Scanalyzers . | . . . Garrison Access . | . . . Terminal Hacks . | . . . Fabricator Hacks . | . . . Repair Station Hacks . | . . . Recycling Unit Hacks . | . . . Scanalyzer . | . . . Garrison Access Hacks . | . . . Unauthorized Hacks . | . . . Terminals . | . . . Fabricators . | . . . Repair Stations . | . . . Recycling Units . | . . . Scanalyzers . | . . . Garrison Access . | . . . Data Cores Recovered . | . . . Used . | . . . Hacking Detections . | . . . Full Trace Events . | . . . Feedback Events . | . . . Feedback Blocked . | . . . Robot Schematics Acquired . | . . . Robots Built . | . . . Authchips . | . . . Time . | . . . Total Robot Build Rating . | . . . Part Schematics Acquired . | . . . Parts Built . | . . . Authchips . | . . . Time . | . . . Total Part Build Rating . | . . . Parts Repaired . | . . . Time . | . . . Parts Recycled . | . . . Recycled Matter . | . . . Retrieved Matter . | . . . Retrieved Components . | . . . Parts Scanalyzed . | . . . Part Schematics Acquired . | . . . Parts Damaged . | . . . Bothacking | -11 -10 -10 ------------ Run | Yrd Mat Sub Used RIF Installer . | . . . Robots Hacked . | . . . Non-combat . | . . . Combat . | . . . Robot Hacks Applied . | . . . Relay Couplers Released . | . . . Fabnet Peak Effective % . | . . . Robots Rewired . | . . . Allies Hacked . | . . . Hacks Repelled . | . . . Allies | -11 -10 -10 -------- Run | Yrd Mat Sub Total Allies . | . . . Largest Group . | . . . Highest-Rated Group . | . . . Highest-Rated Ally . | . . . Total Orders . | . . . Ally Attacks . | . . . Total Damage . | . . . Kills . | . . . Allies Corrupted . | . . . Allies Melted . | . . . Intel | -11 -10 -10 ------- Run | Yrd Mat Sub Active Infowar (turns) . | . . . Robot Analysis Total . | . . . Derelict Logs Recovered . | . . . Drone Launches . | . . . Drone Recoveries . | . . . Exploration | -11 -10 -10 ------------- Run | Yrd Mat Sub Turns Passed 359 | 45 240 74 Spaces Moved 190 | 35 136 19 Core 6 | 6 . . Treads . | . . . Legs 144 | 29 115 . Wheels 40 | . 21 19 Hover . | . . . Flight . | . . . Fastest Speed 50 | 50 90 90 Average Speed 111 | 108 115 92 Slowest Speed 120 | 120 120 100 Overloaded Moves . | . . . Propulsion Burnouts . | . . . Robots Hopped . | . . . Potential Cave-ins . | . . . Cave-ins Triggered . | . . . Exploration Rate (%) 11 | 3 26 4 Regions Visited 2 Branch Regions 1 Pre-discovered Areas 1 | . . 1 Known Exits Taken . | . . . Unknown Exits Taken 2 | 1 1 . Scrap Searched . | . . . Spaces Dug . | . . . Terrain Destroyed . | . . . Melee . | . . . Projectile . | . . . AOE . | . . . Terrain Rammed . | . . . Walls Destroyed . | . . . Machines Disabled . | . . . Actions | -11 -10 -10 --------- Run | Yrd Mat Sub Total 258 | 39 175 44 Wait 4 | . . 4 Move 188 | 34 135 19 Hop . | . . . Pick Up 5 | . 5 . Fast Attach 8 | 5 1 2 Attach 2 | . 2 . Detach . | . . . Swap 4 | . 4 . Drop 5 | . 5 . Fire 42 | . 23 19 Melee . | . . . Ram . | . . . Kick . | . . . Crush . | . . . Escape Stasis . | . . . Rewire . | . . . Trap . | . . . Miscellaneous . | . . . Route ------- -11/Scrapyard -10/Materials -10/Subcaves History --------- Turn | Location | Event 2 | -11/Scrapyard | Discovered new exit (range 16) 46 | -11/Scrapyard | Entered Materials 257 | -10/Materials | Discovered new exit (range 10) 286 | -10/Materials | Entered Subcaves 287 | -10/Subcaves | Approached by a straggling Scientist 289 | -10/Subcaves | Learned location of Zion (-6) 289 | -10/Subcaves | Met a Zionite searching for "candidates" 327 | -10/Subcaves | Core integrity fell below 50% 355 | -10/Subcaves | Core integrity fell below 20% 360 | -10/Subcaves | Destroyed by P3-XBQ(R) with Subdweller Laser Last Messages --------------- 00308_ Switching to secondary target: S-10 Pest. 00313_ Subatomizers dissect the Mak. Power Source. 00314_ Flight Unit fries itself beyond repair. 00314_ Sml. Laser destroyed. 00318_ Acquired Lgt. Assault Rifle. 00322_ Wheel destroyed. 00323_ Flight Unit fries itself beyond repair. 00323_ Lgt. Nuclear Core destroyed. 00324_ Subatomizers dissect the Mak. Power Source. 00327_ S-10 Pest destroyed. 00330_ Acquired 22 matter. 00331_ S-10 Pest destroyed. 00331_ Switching to secondary target: P3-XBQ(R). 00332_ Acquired 2 matter. 00335_ Acquired Mak. Power Source. 00336_ Mak. Power Source destroyed. CY-HX6(c): "I think it's somewhere east of here" 00338_ Lgt. Assault Rifle fries itself beyond repair. 00352_ Com. Wheel destroyed. 00356_ Lgt. Assault Rifle destroyed. Map ----- +----------------------------------------------------+ | ?????????????????????????????????????????????????? | | ?????????????????????????????????????????????????? | | ?????????????????????????????????????????????????? | | ?????????????????????????????????????????????????? | | ?????????????????????????????????????????????????? | | ?????????????????????????????????????????????????? | | ?????????????????????????????????????????????????? | | ?????????????????????????????????????????????????? | | ?????????????????????????????????????????????????? | | ?????????????????????????????????????????????????? | | ????????????????????????##???????????????????????? | | ???????????????????????? ??????????????????????? | | ???????????????????????? ??????????????????????? | | ???????????????????????? #??????????????????????? | | ???????????????????????? ?????#????????????????? | | ?????????????#?????????? ???? #????????????????? | | ????????????## ????#???? #### #????????????????? | | ????????????# ???? #### # ?????????????????? | | ????????????# ????? ??????????????????? | | ????????????# #????? #??###??????????????? | | ????????????# ##???# #?? ##?????????????? | | ????????????# #???# # #? ## ?????????? | | ?????????????# #???# # ??????????? | | ???######????# #???# ???????????? | | ???# ##????# ##### R #??????????????? | | ???# ####?## #% R@ #?????????????????????? | | ### ### %% ####?????????????????????? | | % #????????????????????????? | | #????????????????????????? | | ### ### ## #???????????????????????? | | ????#####?### #### #??????????????????????? | | ????????????# #?### #??????????????????????? | | ???????????# ##???## #?????????????????????? | | ??????????# #?????### #?????????????????????? | | ??????????# #???????? ##?????????????????????? | | ??????????# ???????? #??????????????????????? | | ??????????#" ???????? ??????????????????????? | | ??????????""""" ???????? ?????????????????????? | | ??????????"""""""??????? ????????????????????? | | ???????????" ""??????? ????????????????????? | | ??????????????? ???????? ???????????????????????? | | ?????????????????????????????????????????????????? | | ?????????????????????????????????????????????????? | | ?????????????????????????????????????????????????? | | ?????????????????????????????????????????????????? | | ?????????????????????????????????????????????????? | | ?????????????????????????????????????????????????? | | ?????????????????????????????????????????????????? | | ?????????????????????????????????????????????????? | | ?????????????????????????????????????????????????? | +----------------------------------------------------+ Best States ------------- Heat Dissipation 25 Energy Generation 14 Energy Capacity 160 Matter Stores 300 Matter Capacity 300 Sight Range 16 Terrain Scan Density 10 Evasion (%) 55 Item Schematics ----------------- None Robot Schematics ------------------ None Fabricated ------------ Nothing Repaired ---------- Nothing Alien Tech Used ----------------- None Achievements -------------- None Challenges ------------ None Game ------ Seed HybridMiniMegatreads Manual? 0 Play Time 00:04:30 Cumulative 289.0 hours Start 2025.07.26 @ 18:40:57 End 2025.07.26 @ 18:56:18 Sessions 1 Manual Loads 0 Difficulty Rogue Special Mode None Game No. 114 Rogue 43 Adventurer 68 Explorer 3 Win Type - Total 24 Types 16/1/1/4/1/0/0/0/0/1 Lore% 74 Gallery% 72 Achievement% 69 Wizard Run 0 Options --------- Layout 0 ASCII 0 Keyboard 0 Movement Numpad Keybinds 0 Fullscreen 1 Font 24/Smallcaps Map View 76x50 Zoom Use 0% Tactical HUD 1 Map Filters NONE Filters NONE Steam 1 RUN: ab73c863-36e3-44e5-b995-d75bda8a60c3